Cogmind - Beta 14 @@@ ROGUE MODE // 2024.08.18 @ 14:40:29 Player: Minty Result: Destroyed by D-53 Grenadier with Mini Grenade Launcher Performance ------------- Evolutions (0) 0 Regions Visited (0) 0 Robots Destroyed (3) 15 Value Destroyed (20) 20 Prototype IDs (0) 0 Alien Tech Used (0) 0 Bonus (0) 0 TOTAL SCORE: 35 Bonus ------- None Cogmind --------- Core Integrity 0/250 Matter 300/300 Energy 93/100 System Corruption 0% Temperature Cool (0) Movement Core (50) Location -11/Scrapyard Parts ------- > --- POWER (1) -------- (None) > --- PROPULSION (2) --- (None) > --- UTILITY (2) ------ Seismic Detector > --- WEAPON (2) ------- (None) > --- INVENTORY (5) ---- Light Ion Engine Light Treads Compact Wheel Compact Wheel Tractor Beam Peak State ------------ > --- POWER ------------ Ion Engine > --- PROPULSION ------- Aluminum Leg Aluminum Leg > --- UTILITY ---------- Small Storage Unit Seismic Detector > --- WEAPON ----------- Medium Laser Light Assault Rifle > --- INVENTORY -------- Light Ion Engine Light Treads Light Treads Compact Wheel Compact Wheel Light Assault Rifle [Rating: 7] Favorites ----------- Power Ion Engine Engine Ion Engine Propulsion Aluminum Leg Leg Aluminum Leg Utility Small Storage Unit Device Seismic Detector Storage Small Storage Unit Weapon Light Assault Rifle Energy Gun Medium Laser Ballistic Gun Light Assault Rifle Build | -11 ------- Run | Yrd Slots Evolved . | . Power . | . Propulsion . | . Utility . | . Weapon . | . Parts Attached 3 | 3 Power . | . Engine . | . Core . | . Reactor . | . Propulsion . | . Treads . | . Leg . | . Wheel . | . Hover . | . Flight . | . Utility 1 | 1 Device 1 | 1 Storage . | . Processor . | . Hackware . | . Protection . | . Artifact . | . Weapon 2 | 2 Energy Gun 1 | 1 Energy Cannon . | . Ballistic Gun 1 | 1 Ballistic Cannon . | . Launcher . | . Special Weapon . | . Impact Weapon . | . Slashing Weapon . | . Piercing Weapon . | . Special Melee Weapon . | . Unidentified Prototypes . | . Parts Lost 6 | 6 Power 1 | 1 Propulsion 2 | 2 Utility . | . Weapon 3 | 3 Highest Loss Streak 6 | 6 To Critical Strikes . | . Average Slot Usage (%) . | . Peak Build Rating 7 | 7 Average Rating 6 | 6 On Entrance 6 | 6 Naked Turns . | . Heaviest Build 14 | 14 Greatest Support 20 | 20 Greatest Overweight (x) . | . Average Overweight (x) . | . Largest Inventory Capacity 8 | 8 Average Capacity 7 | 7 Most Carried 7 | 7 Average Carried 6 | 6 Final Capacity 5 | 5 Final Carried 5 | 5 Class Distribution -------------------- None Dominant Class ---------------- None Resources | -11 ----------- Run | Yrd Matter Collected 227 | 227 Remotely . | . Salvage Created 98 | 98 Parts 10 | 10 Haulers Intercepted . | . Recyclers Shooed . | . Parts Field Recycled . | . Retrieved Matter . | . Parts Self-Destructed . | . Prevented . | . Kills | -11 ------- Run | Yrd Combat Hostiles Destroyed . | . Classes Destroyed 2 | 2 Tunneler 2 | 2 Recycler 1 | 1 Best Kill Streak 1 | 1 Combat Bots Only . | . Max Kills in Single Turn 1 | 1 Gunslinging . | . Exploded . | . Melee . | . Uniques/NPCs Destroyed . | . Combat | -11 -------- Run | Yrd Hostile Shots Fired 22 | 22 Missed 1 | 1 Damage Taken 794 | 794 Core 250 | 250 Absorbed by Shields . | . Core Remaining (%) . | . Volleys Fired 18 | 18 Largest 2 | 2 Hottest 70 | 70 Shots Fired 32 | 32 Gun 32 | 32 Cannon . | . Launcher . | . Special . | . Kinetic 25 | 25 Thermal 7 | 7 Explosive . | . Electromagnetic . | . Robot Hit Streak 10 | 10 Robot Miss Streak 4 | 4 Penetration Max . | . Secondary Targets . | . Shots Hit Robots 18 | 18 Core Hits 9 | 9 Critical Kills . | . Critical Parts Destroyed . | . Critical Strikes 1 | 1 Burn 1 | 1 Melee Attacks . | . Impact . | . Slashing . | . Piercing . | . Sneak Attacks . | . Combat Hostiles . | . Follow-up Attacks . | . Damage Inflicted 163 | 163 Guns 163 | 163 Cannons . | . Explosions . | . Melee . | . Ramming . | . Kinetic 112 | 112 Thermal 51 | 51 Explosive . | . Electromagnetic . | . Impact . | . Slashing . | . Piercing . | . Highest Corruption . | . Average Corruption . | . Corruption Purged . | . Corruption Blocked . | . Overload Shots . | . Overflow Damage . | . Projectiles . | . Explosions . | . Melee . | . Knockbacks . | . Impact . | . Kinetic . | . Secondary . | . Self-Inflicted Damage . | . Shots . | . Rammed . | . Targets Rammed . | . Kicked . | . Crushed . | . Highest Temperature 70 | 70 Average Temperature 34 | 34 Received Heat Transfer . | . Siege Activations . | . Robots Corrupted . | . Combat Hostiles . | . Parts Fried . | . Impact Corruptions . | . Robots Melted . | . Combat Hostiles . | . Parts Melted . | . Heat Transferred 222 | 222 Parts Sabotaged . | . Parts Stolen . | . Parts Stripped . | . Power Chain Reactions . | . Alert | -11 ------- Run | Yrd Peak Influence 10 | 10 Initial . | . Average 2 | 2 Maximum Alert Level . | . Low Security (%) 100 | 100 Level 1 . | . Level 2 . | . Level 3 . | . Level 4 . | . Level 5 . | . High Security . | . Max Security . | . Squads Dispatched . | . Investigation . | . Extermination . | . Reinforcement . | . Assault . | . Garrison . | . Intercept . | . Searches Triggered . | . Construction Impeded . | . Haulers Reinforced . | . Active Scanning Responses . | . Cargo Convoy Interrupts . | . Stealth | -11 --------- Run | Yrd Distress Signals . | . Communications Jammed . | . Distress Signals . | . Times Spotted 2 | 2 Peak Tracking Total 2 | 2 Tactical Retreats . | . Traps | -11 ------- Run | Yrd Traps Triggered . | . Indirectly . | . Trap Hack Attempts . | . Triggered . | . Disarmed . | . Reprogrammed . | . Reused . | . Traps Extracted . | . Installed . | . Triggered . | . Machines | -11 ---------- Run | Yrd Machines Disabled . | . Max in Single Turn . | . Machines Repaired . | . Machines Dismantled . | . Machines Sabotaged . | . Overloaded Fab Kills . | . Hacking | -11 --------- Run | Yrd Machines Accessed . | . Terminals . | . Fabricators . | . Repair Stations . | . Recycling Units . | . Scanalyzers . | . Garrison Access . | . Total Hacks . | . Successful . | . Failed . | . Catastrophic . | . Database Lockouts . | . Manual . | . Terminals . | . Fabricators . | . Repair Stations . | . Recycling Units . | . Scanalyzers . | . Garrison Access . | . Terminal Hacks . | . Fabricator Hacks . | . Repair Station Hacks . | . Recycling Unit Hacks . | . Scanalyzer . | . Garrison Access Hacks . | . Unauthorized Hacks . | . Terminals . | . Fabricators . | . Repair Stations . | . Recycling Units . | . Scanalyzers . | . Garrison Access . | . Data Cores Recovered . | . Used . | . Hacking Detections . | . Full Trace Events . | . Feedback Events . | . Feedback Blocked . | . Robot Schematics Acquired . | . Robots Built . | . Authchips . | . Time . | . Total Robot Build Rating . | . Part Schematics Acquired . | . Parts Built . | . Authchips . | . Time . | . Total Part Build Rating . | . Parts Repaired . | . Time . | . Parts Recycled . | . Recycled Matter . | . Retrieved Matter . | . Retrieved Components . | . Parts Scanalyzed . | . Part Schematics Acquired . | . Parts Damaged . | . Bothacking | -11 ------------ Run | Yrd Used RIF Installer . | . Robots Hacked . | . Non-combat . | . Combat . | . Robot Hacks Applied . | . Relay Couplers Released . | . Fabnet Peak Effective % . | . Robots Rewired . | . Allies Hacked . | . Hacks Repelled . | . Allies | -11 -------- Run | Yrd Total Allies . | . Largest Group . | . Highest-Rated Group . | . Highest-Rated Ally . | . Total Orders . | . Ally Attacks . | . Total Damage . | . Kills . | . Allies Corrupted . | . Allies Melted . | . Intel | -11 ------- Run | Yrd Robot Analysis Total . | . Derelict Logs Recovered . | . Drone Launches . | . Drone Recoveries . | . Exploration | -11 ------------- Run | Yrd Turns Passed 1336 | 1336 Spaces Moved 70 | 70 Core 1 | 1 Treads . | . Legs 69 | 69 Wheels . | . Hover . | . Flight . | . Fastest Speed 50 | 50 Average Speed 119 | 119 Slowest Speed 120 | 120 Overloaded Moves . | . Propulsion Burnouts . | . Robots Hopped . | . Cave-ins Triggered . | . Exploration Rate (%) 10 | 10 Regions Visited . Branch Regions . Pre-discovered Areas . | . Known Exits Taken . | . Unknown Exits Taken . | . Scrap Searched . | . Spaces Dug . | . Terrain Destroyed . | . Melee . | . Projectile . | . AOE . | . Terrain Rammed . | . Walls Destroyed . | . Machines Disabled . | . Actions | -11 --------- Run | Yrd Total 1295 | 1295 Wait 1202 | 1202 Move 70 | 70 Hop . | . Pick Up 1 | 1 Fast Attach 1 | 1 Attach 1 | 1 Detach . | . Swap 1 | 1 Drop 1 | 1 Fire 18 | 18 Melee . | . Ram . | . Kick . | . Crush . | . Escape Stasis . | . Rewire . | . Trap . | . Miscellaneous . | . Route ------- -11/Scrapyard (discovered 1 exit: [*Mat]) History --------- Turn | Location | Event 1 | -11/Scrapyard | Discovered new exit (range 3) 1310 | -11/Scrapyard | Assembled infested the area 1329 | -11/Scrapyard | Core integrity fell below 50% 1336 | -11/Scrapyard | Core integrity fell below 20% 1337 | -11/Scrapyard | Destroyed by D-53 Grenadier with Mini Grenade Launcher Last Messages --------------- 00721_ K-01 Serf collects debris. 00727_ T-07 Excavator is excavating. 01310_ ALERT: Infestation in the scrapyard, dispatching Demolisher response squad. 01310_ C-30 ARC bursts open, deploying its payload. 01310_ D-53 Grenadier unfolds itself. 01316_ T-07 Excavator destroyed. 01324_ Lgt. Assault Rifle destroyed. 01325_ The unstable cave ceiling collapses. 01326_ Med. Laser destroyed. 01330_ The unstable cave ceiling collapses. 01330_ Aluminum Leg destroyed. 01330_ Ion Engine destroyed. 01332_ K-01 Serf collects debris. 01333_ The unstable cave ceiling collapses. 01333_ Lgt. Ion Engine crushed. 01333_ The unstable cave ceiling collapses. 01336_ Dropped Sml. Storage Unit. 01336_ Aluminum Leg destroyed. 01336_ Lgt. Assault Rifle destroyed. Map ----- +----------------------------------------------------+ | ?????????????????????????????????????????????????? | | ?????????????????????????????????????????????????? | | ?????????????????????????????????????????????????? | | ?????????????????????????????????????????????????? | | ?????????????????????????????????????????????????? | | ?????????????????????????????????????????????????? | | ?????????????????????????????????????????????????? | | ?????????????????????????????????????????????????? | | ?????????????????????????????????????????????????? | | ??????????????????????????????????#??????????????? | | ??????????????????????????????????? ######???????? | | ??????????????????????????????????? # # ????????? | | ???????????????????????????????????? ?????????? | | ???????????????? ???????????????????# #?????????? | | ?????????????? ???????????????????# #?????????? | | ?????????????? ???????????????#### ####??????? | | ????????????? ? ?##########???# #??????? | | ?????????????? # #???# #??????? | | ??????????????? ? # ##### ** ####### | | ????????????##### ## # ## % | | ???????????? %d !% | | ????????????? d " ####### | | ???????????????????# ## %<"#??????? | | ???????????????????# ## #??????? | | ???????????????????# != ############??????? | | ???????????????????# # @ #?????????????????? | | ?????????????????# #?????????????????? | | ????????????????# ##?????????????????? | | ????????????????# ## ##??????????????????? | | ????????????????# # #?##???????????????????? | | ????????????????# # ??????????????????????? | | ????????????????# ?# ??????????????????????? | | ????????????????# ?# #??????????????????????? | | ????????????????# ??# #??????????????????????? | | ????????????????#####??# ???????????????????????? | | ??????????????????????? ???????????????????????? | | ???????????????????????# ???????????????????????? | | ???????????????????????# ???????????????????????? | | ???????????????????????# ???????????????????????? | | ????????????????????????##???????????????????????? | | ?????????????????????????????????????????????????? | | ?????????????????????????????????????????????????? | | ?????????????????????????????????????????????????? | | ?????????????????????????????????????????????????? | | ?????????????????????????????????????????????????? | | ?????????????????????????????????????????????????? | | ?????????????????????????????????????????????????? | | ?????????????????????????????????????????????????? | | ?????????????????????????????????????????????????? | | ?????????????????????????????????????????????????? | +----------------------------------------------------+ Best States ------------- Heat Dissipation 25 Energy Generation 10 Energy Capacity 250 Matter Stores 300 Matter Capacity 300 Sight Range 16 Terrain Scan Density 10 Evasion (%) 55 Item Schematics ----------------- None Robot Schematics ------------------ None Fabricated ------------ Nothing Alien Tech Used ----------------- None Achievements -------------- None Challenges ------------ None Game ------ Seed ColdFlightCorpse Manual? 0 Play Time 00:06:36 Cumulative 872.2 hours Start 2024.08.18 @ 14:35:26 End 2024.08.18 @ 14:40:29 Sessions 0 Manual Loads 0 Difficulty Rogue Special Mode None Game No. 1050 Rogue 771 Adventurer 124 Explorer 155 Win Type - Total 37 Types 28/0/7/1/0/0/0/1/0 Lore% 75 Gallery% 89 Achievement% 78 Wizard Run 0 Options --------- Layout 0 ASCII 0 Keyboard 1 Movement Numpad Keybinds 0 Fullscreen 2 Font 18/Smallcaps Map View 76x50 Zoom Use 6% Tactical HUD 1 Map Filters NONE Filters NONE Steam 1 RUN: ad2ec4a0-fd38-453d-9ca5-9742e3683471